[Event "FIDE WYCC Top Boards Girls 2023"]
[Site "Montesilvano"]
[Date "2023.11.22"]
[Round "9.8"]
[White "Allahverdiyeva, Ayan"]
[Black "Kurmangaliyeva, Liya"]
[Result "1-0"]
[ECO "B41"]
[WhiteElo "2152"]
[BlackElo "2236"]
[Annotator "RC"]
[PlyCount "121"]
[EventDate "2023.11.13"]
[EventType "swiss"]
[EventCountry "ITA"]
[SourceTitle "playchess.com"]
[Source "ChessBase"]
[SourceQuality "1"]
[TimeControl "40/5400+30:1800+30"]

1. e4 {[%emt 0:00:01]} c5 {[%emt 0:00:15]} 2. Nf3 {[%emt 0:01:02]} e6 {[%emt 0:00:09]} 3. d4 {[%emt 0:00:38]} cxd4 {[%emt 0:00:06]} 4. Nxd4 {[%emt 0:00:02]} a6 {[%emt 0:00:07]} 5. a3 {[%emt 0:00:59]} Qc7 {[%emt 0:05:53]} 6. c4 {[%emt 0:01:53]} Nf6 {[%emt 0:00:46]} 7. Nc3 {[%emt 0:00:34]} b6 {[%emt 0:00:13]} 8. Be2 {[%emt 0:04:36]} Bb7 {[%emt 0:00:17]} 9. f3 {[%emt 0:01:08]} Be7 {[%emt 0:00:42]} 10. Be3 {[%emt 0:02:12]} O-O {[%emt 0:00:51]} 11. Rc1 {[%emt 0:00:24]} d6 {[%emt 0:01:13]} 12. g4 {[%emt 0:01:28]} Rc8 {[%emt 0:17:17]} 13. g5 {[%emt 0:10:26]} Nfd7 {[%emt 0:03:06]} 14. h4 {[%emt 0:06:07]} Qd8 {[%emt 0:02:40]} 15. Kf2 {[%emt 0:01:21]} Nc6 {[%emt 0:05:11]} 16. Nxc6 {[%emt 0:15:30]} Bxc6 {[%emt 0:03:46]} 17. Qd4 {[%emt 0:09:03]} Rab8 {[%emt 0:08:49]} 18. b4 {[%emt 0:09:57]} Nf8 {[%emt 0:08:26]} 19. Rcg1 {[%emt 0:11:26]} Nd7 {[%emt 0:22:01]} 20. h5 {[%emt 0:02:31]} b5 {[%emt 0:01:05]} 21. cxb5 {[%emt 0:05:31]} axb5 {[%emt 0:01:00]} 22. h6 {[%emt 0:00:05]} Bf8 {[%emt 0:01:24]} 23. hxg7 {[%emt 0:01:35]} Bxg7 {[%emt 0:00:15]} 24. Qxd6 {[%emt 0:00:02]} Bxc3 {[%emt 0:09:04]} 25. g6 {[%emt 0:00:35]} Nf6 {[%emt 0:06:22]} 26. gxh7+ {[%emt 0:05:28]} Kh8 {[%emt 0:00:03]} 27. Qg3 {[%emt 0:00:10]} Nxe4+ {[%emt 0:00:17]} 28. fxe4 {[%emt 0:00:03]} Qf6+ {[%emt 0:00:03]} 29. Bf3 {[%emt 0:01:10]} Qg7 {[%emt 0:01:01]} 30. Qh2 {[%emt 0:00:32]} Qe5 {[%emt 0:01:46]} 31. Rg8+ {[%emt 0:05:05]} Rxg8 {[%emt 0:00:08]} 32. hxg8=Q+ {[%emt 0:00:03]} Kxg8 {[%emt 0:00:02]} 33. Qh7+ {[%emt 0:00:24]} Kf8 {[%emt 0:00:05]} 34. Bc5+ {[%emt 0:00:41]} Ke8 {[%emt 0:00:04]} 35. Qg8+ {[%emt 0:01:07]} Kd7 {[%emt 0:00:04]} 36. Rd1+ {[%emt 0:00:28]} Kc7 {[%emt 0:00:45]} 37. Qxf7+ {[%emt 0:00:19]} Kc8 {[%emt 0:00:15]} 38. Qf8+ {[%emt 0:03:20]} Kb7 {[%emt 0:00:56]} 39. Qe7+ {[%emt 0:00:09]} Qc7 {[%emt 0:00:34]} 40. Qxc7+ {[%emt 0:00:00]} Kxc7 {[%emt 0:00:00]} 41. Bd6+ {[%emt 0:00:17]} Kb7 {[%emt 0:00:11]} 42. Bxb8 {[%emt 0:03:06]} Kxb8 {[%emt 0:02:50]} 43. Rd6 {[%emt 0:02:37]} Kc7 {[%emt 0:01:17]} 44. Rxe6 {[%emt 0:05:15]} Bb2 {[%emt 0:01:01]} 45. e5 {[%emt 0:03:54]} Bd7 {[%emt 0:03:32]} 46. Ra6 {[%emt 0:04:33]} Bxe5 {[%emt 0:00:05]} 47. Ra7+ {[%emt 0:00:31]} Kc8 {[%emt 0:00:31]} 48. Ke3 {[%emt 0:00:47]} Bh2 {[%emt 0:00:17]} 49. Kd3 {[%emt 0:02:06]} Bg3 {[%emt 0:02:10]} 50. Ra6 {[%emt 0:06:02]} Kc7 {[%emt 0:04:04]} 51. Kd4 {[%emt 0:00:53]} Bf2+ {[%emt 0:00:42]} 52. Kd5 {[%emt 0:00:06]} Bb6 {[%emt 0:00:54]} 53. Ke5 {[%emt 0:00:30]} Bf2 {[%emt 0:01:09]} 54. Rh6 {[%emt 0:00:36]} Bg3+ {[%emt 0:00:55]} 55. Kd5 {[%emt 0:00:09]} Bf4 {[%emt 0:00:19]} 56. Rf6 {[%emt 0:00:50]} Bg3 {[%emt 0:00:48]} 57. Rg6 {[%emt 0:00:24]} Bf4 {[%emt 0:00:58]} 58. Rg7 {[%emt 0:03:00]} Kd8 {[%emt 0:00:11]} 59. Bg4 {[%emt 0:02:11]} Be8 {[%emt 0:00:08]} 60. Ke6 {[%emt 0:00:29]} Bc6 {[%emt 0:01:07]} 61. Rf7 {[%emt 0:00:12]} 1-0

[Event "FIDE WYCC Top Boards Girls 2023"]
[Site "Montesilvano"]
[Date "2023.11.22"]
[Round "9.9"]
[White "Bondar, Daria"]
[Black "Wang, Chuqiao"]
[Result "1/2-1/2"]
[ECO "C85"]
[WhiteElo "1908"]
[BlackElo "2215"]
[Annotator "RC"]
[PlyCount "89"]
[EventDate "2023.11.13"]
[EventType "swiss"]
[EventCountry "ITA"]
[SourceTitle "playchess.com"]
[Source "ChessBase"]
[SourceQuality "1"]
[TimeControl "40/5400+30:1800+30"]

1. e4 {[%emt 0:00:03]} e5 {[%emt 0:00:07]} 2. Nf3 {[%emt 0:00:06]} Nc6 {[%emt 0:00:04]} 3. Bb5 {[%emt 0:00:07]} a6 {[%emt 0:00:08]} 4. Ba4 {[%emt 0:00:06]} Nf6 {[%emt 0:00:08]} 5. O-O {[%emt 0:00:15]} Be7 {[%emt 0:00:04]} 6. Bxc6 {[%emt 0:00:26]} dxc6 {[%emt 0:00:22]} 7. d3 {[%emt 0:00:13]} Nd7 {[%emt 0:02:33]} 8. Nbd2 {[%emt 0:00:30]} O-O {[%emt 0:08:27]} 9. Nc4 {[%emt 0:00:27]} Bf6 {[%emt 0:03:17]} 10. b3 {[%emt 0:03:20]} Nb6 {[%emt 0:03:35]} 11. Ne3 {[%emt 0:14:15]} Re8 {[%emt 0:02:07]} 12. Bb2 {[%emt 0:02:48]} Qd6 {[%emt 0:05:21]} 13. a4 {[%emt 0:03:36]} Qe6 {[%emt 0:02:33]} 14. h3 {[%emt 0:04:58]} h5 {[%emt 0:03:58]} 15. Nd2 {[%emt 0:08:09]} g6 {[%emt 0:00:15]} 16. a5 {[%emt 0:05:42]} Nd7 {[%emt 0:00:18]} 17. Nec4 {[%emt 0:00:34]} b5 {[%emt 0:01:25]} 18. Ne3 {[%emt 0:08:48]} Nf8 {[%emt 0:01:07]} 19. Qf3 {[%emt 0:07:33]} Nh7 {[%emt 0:01:20]} 20. Qg3 {[%emt 0:01:30]} Bg5 {[%emt 0:01:34]} 21. h4 {[%emt 0:04:01]} Bf4 {[%emt 0:01:33]} 22. Qf3 {[%emt 0:00:06]} Nf6 {[%emt 0:01:06]} 23. g3 {[%emt 0:03:50]} Bh6 {[%emt 0:00:12]} 24. b4 {[%emt 0:02:18]} Qe7 {[%emt 0:01:19]} 25. Ba3 {[%emt 0:02:15]} Ng4 {[%emt 0:00:23]} 26. Nb3 {[%emt 0:03:03]} Rd8 {[%emt 0:06:16]} 27. Nc5 {[%emt 0:03:18]} Qd6 {[%emt 0:03:12]} 28. c3 {[%emt 0:02:25]} Qe7 {[%emt 0:01:19]} 29. Bc1 {[%emt 0:01:15]} Bf8 {[%emt 0:02:50]} 30. Qe2 {[%emt 0:01:21]} Nf6 {[%emt 0:01:02]} 31. Ng2 {[%emt 0:01:49]} Nd7 {[%emt 0:01:41]} 32. Bg5 {[%emt 0:01:23]} f6 {[%emt 0:00:04]} 33. Be3 {[%emt 0:01:52]} Qf7 {[%emt 0:01:17]} 34. Nxd7 {[%emt 0:05:36]} Bxd7 {[%emt 0:00:10]} 35. Rab1 {[%emt 0:00:24]} Be6 {[%emt 0:00:58]} 36. f3 {[%emt 0:01:01]} Rd7 {[%emt 0:00:54]} 37. Rfd1 {[%emt 0:02:25]} Rad8 {[%emt 0:00:10]} 38. Bc5 {[%emt 0:04:03]} Be7 {[%emt 0:04:53]} 39. Qe3 {[%emt 0:01:06]} Bd6 {[%emt 0:06:06]} 40. Rd2 {[%emt 0:00:00]} f5 {[%emt 0:00:00]} 41. d4 {[%emt 0:07:58]} Bxc5 {[%emt 0:10:51]} 42. bxc5 {[%emt 0:00:10]} fxe4 {[%emt 0:00:45]} 43. fxe4 {[%emt 0:00:15]} Qg7 {[%emt 0:00:05]} 44. Qg5 {[%emt 0:06:14]} Kh7 {[%emt 0:02:34]} 45. Rf1 {[%emt 0:03:59]} 1/2-1/2

[Event "FIDE WYCC Top Boards Girls 2023"]
[Site "Montesilvano"]
[Date "2023.11.22"]
[Round "9.10"]
[White "Shvedova, Alexandra"]
[Black "Kayis, Gulcan Sena"]
[Result "1-0"]
[ECO "C55"]
[WhiteElo "2170"]
[BlackElo "1859"]
[Annotator "RC"]
[PlyCount "67"]
[EventDate "2023.11.13"]
[EventType "swiss"]
[EventCountry "ITA"]
[SourceTitle "playchess.com"]
[Source "ChessBase"]
[SourceQuality "1"]
[TimeControl "40/5400+30:1800+30"]

1. e4 {[%emt 0:00:03]} e5 {[%emt 0:00:11]} 2. Nf3 {[%emt 0:00:26]} Nc6 {[%emt 0:01:11]} 3. Bc4 {[%emt 0:00:14]} Be7 {[%emt 0:00:55]} 4. O-O {[%emt 0:00:49]} Nf6 {[%emt 0:00:28]} 5. d3 {[%emt 0:00:35]} O-O {[%emt 0:00:56]} 6. Re1 {[%emt 0:00:36]} d6 {[%emt 0:01:13]} 7. a4 {[%emt 0:00:07]} Na5 {[%emt 0:02:07]} 8. Ba2 {[%emt 0:00:21]} c5 {[%emt 0:00:26]} 9. c3 {[%emt 0:02:55]} Nc6 {[%emt 0:00:19]} 10. Nbd2 {[%emt 0:03:56]} h6 {[%emt 0:01:33]} 11. Nf1 {[%emt 0:05:56]} Re8 {[%emt 0:01:45]} 12. h3 {[%emt 0:04:22]} Bf8 {[%emt 0:04:17]} 13. Ne3 {[%emt 0:02:12]} Be6 {[%emt 0:12:16]} 14. Bxe6 {[%emt 0:27:28]} fxe6 {[%emt 0:08:27]} 15. Ng4 {[%emt 0:02:12]} Nd7 {[%emt 0:12:21]} 16. Bd2 {[%emt 0:06:05]} Rc8 {[%emt 0:03:22]} 17. g3 {[%emt 0:05:46]} b6 {[%emt 0:09:53]} 18. Kg2 {[%emt 0:09:46]} d5 {[%emt 0:06:17]} 19. h4 {[%emt 0:01:15]} Qc7 {[%emt 0:12:32]} 20. h5 {[%emt 0:02:01]} c4 {[%emt 0:01:20]} 21. dxc4 {[%emt 0:02:23]} dxc4 {[%emt 0:00:41]} 22. Qe2 {[%emt 0:01:51]} Na5 {[%emt 0:01:35]} 23. Rad1 {[%emt 0:00:14]} Be7 {[%emt 0:03:30]} 24. Rh1 {[%emt 0:05:08]} Rcd8 {[%emt 0:02:33]} 25. Nh4 {[%emt 0:01:27]} Bxh4 {[%emt 0:00:56]} 26. Rxh4 {[%emt 0:00:12]} Nf8 {[%emt 0:00:47]} 27. f4 {[%emt 0:05:00]} exf4 {[%emt 0:00:41]} 28. Bxf4 {[%emt 0:00:07]} Qe7 {[%emt 0:01:56]} 29. Rf1 {[%emt 0:00:50]} Nb3 {[%emt 0:01:59]} 30. Rf2 {[%emt 0:01:48]} Nc5 {[%emt 0:01:49]} 31. Bxh6 {[%emt 0:01:43]} gxh6 {[%emt 0:00:59]} 32. Nxh6+ {[%emt 0:00:06]} Kh8 {[%emt 0:00:13]} 33. Nf7+ {[%emt 0:02:16]} Kh7 {[%emt 0:00:06]} 34. Qe3 {[%emt 0:00:20]} 1-0

[Event "FIDE WYCC Top Boards Girls 2023"]
[Site "Montesilvano"]
[Date "2023.11.22"]
[Round "9.11"]
[White "Kirtadze, Anastasia"]
[Black "Khamdamova, Afruza"]
[Result "0-1"]
[ECO "C92"]
[WhiteElo "1921"]
[BlackElo "2199"]
[Annotator "RC"]
[PlyCount "104"]
[EventDate "2023.11.13"]
[EventType "swiss"]
[EventCountry "ITA"]
[SourceTitle "playchess.com"]
[Source "ChessBase"]
[SourceQuality "1"]
[TimeControl "40/5400+30:1800+30"]

1. e4 {[%emt 0:00:05]} e5 {[%emt 0:00:17]} 2. Nf3 {[%emt 0:00:07]} Nc6 {[%emt 0:00:18]} 3. Bb5 {[%emt 0:00:41]} a6 {[%emt 0:00:12]} 4. Ba4 {[%emt 0:00:03]} Nf6 {[%emt 0:00:13]} 5. O-O {[%emt 0:00:06]} Be7 {[%emt 0:00:13]} 6. Re1 {[%emt 0:00:07]} b5 {[%emt 0:00:04]} 7. Bb3 {[%emt 0:00:03]} d6 {[%emt 0:00:05]} 8. c3 {[%emt 0:00:05]} O-O {[%emt 0:00:11]} 9. h3 {[%emt 0:00:04]} Bb7 {[%emt 0:00:27]} 10. a4 {[%emt 0:10:40]} Na5 {[%emt 0:12:54]} 11. Bc2 {[%emt 0:00:57]} c5 {[%emt 0:01:46]} 12. d4 {[%emt 0:02:05]} cxd4 {[%emt 0:12:42]} 13. cxd4 {[%emt 0:00:34]} Nc6 {[%emt 0:09:37]} 14. Nc3 {[%emt 0:08:48]} exd4 {[%emt 0:19:19]} 15. Nxd4 {[%emt 0:01:05]} Nxd4 {[%emt 0:10:14]} 16. Qxd4 {[%emt 0:00:27]} Rc8 {[%emt 0:00:10]} 17. axb5 {[%emt 0:06:25]} axb5 {[%emt 0:00:03]} 18. Bb3 {[%emt 0:06:36]} Bc6 {[%emt 0:05:35]} 19. Bf4 {[%emt 0:07:28]} b4 {[%emt 0:03:47]} 20. Nd5 {[%emt 0:06:23]} Bxd5 {[%emt 0:00:13]} 21. exd5 {[%emt 0:00:35]} Nd7 {[%emt 0:00:43]} 22. Qxb4 {[%emt 0:10:38]} Rb8 {[%emt 0:01:29]} 23. Qa3 {[%emt 0:00:53]} Ne5 {[%emt 0:02:28]} 24. Ba4 {[%emt 0:14:40]} Bf6 {[%emt 0:01:39]} 25. b3 {[%emt 0:01:44]} Nd3 {[%emt 0:03:30]} 26. Qxd6 {[%emt 0:08:23]} Nxf4 {[%emt 0:01:43]} 27. Qxf4 {[%emt 0:00:07]} Bxa1 {[%emt 0:00:04]} 28. Rxa1 {[%emt 0:00:22]} Qxd5 {[%emt 0:00:11]} 29. Re1 {[%emt 0:00:54]} Rb6 {[%emt 0:01:18]} 30. Qc4 {[%emt 0:04:05]} Qd2 {[%emt 0:02:07]} 31. Re4 {[%emt 0:04:11]} Rf6 {[%emt 0:02:14]} 32. Qc5 {[%emt 0:00:27]} Re6 {[%emt 0:03:05]} 33. Rg4 {[%emt 0:01:27]} Qd1+ {[%emt 0:01:47]} 34. Kh2 {[%emt 0:00:26]} g6 {[%emt 0:00:30]} 35. Qd4 {[%emt 0:02:23]} Qc2 {[%emt 0:01:04]} 36. Rf4 {[%emt 0:00:54]} Qc7 {[%emt 0:00:44]} 37. g3 {[%emt 0:00:45]} Rd8 {[%emt 0:01:36]} 38. Qc4 {[%emt 0:00:47]} Qb7 {[%emt 0:02:13]} 39. b4 {[%emt 0:02:00]} Rc8 {[%emt 0:01:17]} 40. Qf1 {[%emt 0:00:00]} Rc3 {[%emt 0:00:00]} 41. Qg2 {[%emt 0:02:34]} Qa7 {[%emt 0:09:09]} 42. Bb5 {[%emt 0:03:33]} Rc2 {[%emt 0:01:54]} 43. Qf3 {[%emt 0:05:26]} Qc7 {[%emt 0:03:44]} 44. Qb3 {[%emt 0:06:37]} Rc3 {[%emt 0:01:05]} 45. Qa2 {[%emt 0:00:35]} Re5 {[%emt 0:03:45]} 46. Bf1 {[%emt 0:03:19]} g5 {[%emt 0:01:26]} 47. Rf6 {[%emt 0:03:32]} Kg7 {[%emt 0:02:21]} 48. Qa6 {[%emt 0:01:19]} Qe7 {[%emt 0:00:00]} 49. Rb6 {[%emt 0:00:48]} Rf5 {[%emt 0:01:48]} 50. Kg1 {[%emt 0:03:06]} Rxf2 {[%emt 0:03:33]} 51. Bg2 {[%emt 0:05:45]} Qe1+ {[%emt 0:00:10]} 52. Kh2 {[%emt 0:00:05]} Rxg2+ {[%emt 0:00:05]} 0-1

[Event "FIDE WYCC Top Boards Girls 2023"]
[Site "Montesilvano"]
[Date "2023.11.22"]
[Round "9.12"]
[White "Mou, Iris"]
[Black "Shukhman, Anna"]
[Result "0-1"]
[ECO "B22"]
[WhiteElo "2086"]
[BlackElo "2263"]
[Annotator "RC"]
[PlyCount "88"]
[EventDate "2023.11.13"]
[EventType "swiss"]
[EventCountry "ITA"]
[SourceTitle "playchess.com"]
[Source "ChessBase"]
[SourceQuality "1"]
[TimeControl "40/5400+30:1800+30"]

1. e4 {[%emt 0:01:29]} c5 {[%emt 0:00:06]} 2. Nf3 {[%emt 0:00:18]} e6 {[%emt 0:00:06]} 3. c3 {[%emt 0:00:07]} d5 {[%emt 0:00:03]} 4. exd5 {[%emt 0:00:09]} Qxd5 {[%emt 0:00:04]} 5. d4 {[%emt 0:00:25]} Nf6 {[%emt 0:00:06]} 6. Na3 {[%emt 0:02:32]} cxd4 {[%emt 0:01:25]} 7. Nb5 {[%emt 0:00:37]} Qd8 {[%emt 0:00:07]} 8. Nbxd4 {[%emt 0:00:53]} Be7 {[%emt 0:04:36]} 9. Bd3 {[%emt 0:03:10]} O-O {[%emt 0:01:54]} 10. O-O {[%emt 0:00:20]} b6 {[%emt 0:05:17]} 11. Qe2 {[%emt 0:05:38]} Bb7 {[%emt 0:01:31]} 12. Rd1 {[%emt 0:03:43]} Qc8 {[%emt 0:05:15]} 13. Bg5 {[%emt 0:11:05]} Na6 {[%emt 0:11:25]} 14. b4 {[%emt 0:11:44]} Nc7 {[%emt 0:14:19]} 15. a3 {[%emt 0:10:38]} Ncd5 {[%emt 0:03:40]} 16. Rac1 {[%emt 0:02:19]} Bd6 {[%emt 0:08:54]} 17. Nb5 {[%emt 0:08:04]} Bf4 {[%emt 0:03:04]} 18. c4 {[%emt 0:10:43]} Bxc1 {[%emt 0:01:51]} 19. Rxc1 {[%emt 0:00:51]} Ne7 {[%emt 0:14:49]} 20. Bxf6 {[%emt 0:06:11]} Bxf3 {[%emt 0:01:48]} 21. Qxf3 {[%emt 0:00:54]} gxf6 {[%emt 0:00:04]} 22. Qxf6 {[%emt 0:03:00]} Qd8 {[%emt 0:00:39]} 23. Qf3 {[%emt 0:02:59]} Ng6 {[%emt 0:06:24]} 24. Be4 {[%emt 0:01:31]} Qg5 {[%emt 0:00:14]} 25. Qc3 {[%emt 0:02:32]} Rad8 {[%emt 0:01:23]} 26. Nxa7 {[%emt 0:01:14]} f5 {[%emt 0:00:23]} 27. Bc6 {[%emt 0:03:48]} Rd3 {[%emt 0:03:06]} 28. Qe1 {[%emt 0:01:23]} Nf4 {[%emt 0:00:24]} 29. Ra1 {[%emt 0:00:41]} Rfd8 {[%emt 0:01:17]} 30. g3 {[%emt 0:03:03]} Qh5 {[%emt 0:00:31]} 31. Bd5 {[%emt 0:01:26]} exd5 {[%emt 0:01:04]} 32. gxf4 {[%emt 0:00:16]} Kf7 {[%emt 0:00:07]} 33. Nc6 {[%emt 0:01:27]} Rg8+ {[%emt 0:00:07]} 34. Kf1 {[%emt 0:00:04]} Qh3+ {[%emt 0:03:15]} 35. Ke2 {[%emt 0:00:04]} Re8+ {[%emt 0:03:24]} 36. Ne5+ {[%emt 0:00:06]} Rxe5+ {[%emt 0:00:02]} 37. fxe5 {[%emt 0:00:05]} Rd4 {[%emt 0:00:24]} 38. e6+ {[%emt 0:01:47]} Ke8 {[%emt 0:00:04]} 39. f3 {[%emt 0:01:20]} Qg2+ {[%emt 0:01:42]} 40. Ke3 {[%emt 0:00:00]} Qb2 {[%emt 0:00:00]} 41. Qe2 {[%emt 0:04:37]} Qxa1 {[%emt 0:01:10]} 42. Kf2 {[%emt 0:01:29]} Qc1 {[%emt 0:01:09]} 43. Kg3 {[%emt 0:02:13]} Qg5+ {[%emt 0:00:15]} 44. Kf2 {[%emt 0:00:04]} Rd2 {[%emt 0:00:06]} 0-1

[Event "FIDE WYCC Top Boards Girls 2023"]
[Site "Montesilvano"]
[Date "2023.11.23"]
[Round "10.7"]
[White "Wu, Rochelle"]
[Black "Zhurova, Anna"]
[Result "0-1"]
[ECO "E48"]
[WhiteElo "2228"]
[BlackElo "2149"]
[Annotator "RC"]
[PlyCount "102"]
[EventDate "2023.11.13"]
[EventType "swiss"]
[EventCountry "ITA"]
[SourceTitle "playchess.com"]
[Source "ChessBase"]
[SourceQuality "1"]
[TimeControl "40/5400+30:1800+30"]

1. d4 {[%emt 0:00:02]} Nf6 {[%emt 0:04:03]} 2. c4 {[%emt 0:00:05]} e6 {[%emt 0:00:35]} 3. Nc3 {[%emt 0:00:21]} Bb4 {[%emt 0:00:11]} 4. e3 {[%emt 0:00:05]} O-O {[%emt 0:00:10]} 5. Bd3 {[%emt 0:00:12]} Re8 {[%emt 0:00:07]} 6. Nge2 {[%emt 0:00:29]} d5 {[%emt 0:00:40]} 7. cxd5 {[%emt 0:00:26]} exd5 {[%emt 0:00:08]} 8. a3 {[%emt 0:00:15]} Bd6 {[%emt 0:00:20]} 9. Qc2 {[%emt 0:00:30]} a6 {[%emt 0:07:00]} 10. Ng3 {[%emt 0:01:53]} Nbd7 {[%emt 0:06:49]} 11. O-O {[%emt 0:04:27]} c5 {[%emt 0:03:11]} 12. Bd2 {[%emt 0:12:23]} h5 {[%emt 0:08:22]} 13. dxc5 {[%emt 0:07:51]} Nxc5 {[%emt 0:04:15]} 14. b4 {[%emt 0:08:57]} Nxd3 {[%emt 0:02:49]} 15. Qxd3 {[%emt 0:00:03]} g6 {[%emt 0:00:18]} 16. Rfd1 {[%emt 0:09:46]} h4 {[%emt 0:02:33]} 17. Nf1 {[%emt 0:01:33]} h3 {[%emt 0:03:05]} 18. Ng3 {[%emt 0:03:25]} hxg2 {[%emt 0:04:33]} 19. f3 {[%emt 0:04:01]} Bxg3 {[%emt 0:11:06]} 20. hxg3 {[%emt 0:00:06]} Bf5 {[%emt 0:00:02]} 21. Qd4 {[%emt 0:03:45]} Rc8 {[%emt 0:00:10]} 22. Be1 {[%emt 0:00:38]} Qe7 {[%emt 0:02:03]} 23. Bf2 {[%emt 0:08:42]} Bc2 {[%emt 0:06:41]} 24. Rd2 {[%emt 0:02:56]} Qe6 {[%emt 0:00:26]} 25. Rxc2 {[%emt 0:02:24]} Rc4 {[%emt 0:00:23]} 26. Kxg2 {[%emt 0:03:51]} Rxd4 {[%emt 0:00:44]} 27. exd4 {[%emt 0:00:07]} Qf5 {[%emt 0:02:40]} 28. Raa2 {[%emt 0:01:57]} Rc8 {[%emt 0:04:31]} 29. Rc1 {[%emt 0:01:18]} Kg7 {[%emt 0:00:27]} 30. g4 {[%emt 0:05:33]} Qd3 {[%emt 0:05:06]} 31. Be1 {[%emt 0:03:56]} g5 {[%emt 0:07:36]} 32. Rd1 {[%emt 0:00:51]} Qh7 {[%emt 0:00:19]} 33. Re2 {[%emt 0:01:49]} Rh8 {[%emt 0:05:42]} 34. Bg3 {[%emt 0:00:05]} Qh3+ {[%emt 0:00:09]} 35. Kf2 {[%emt 0:00:05]} Rc8 {[%emt 0:00:24]} 36. Re3 {[%emt 0:02:34]} Qh7 {[%emt 0:03:40]} 37. Rd2 {[%emt 0:00:37]} Kg6 {[%emt 0:01:19]} 38. Rde2 {[%emt 0:01:55]} Qh8 {[%emt 0:02:29]} 39. Rd3 {[%emt 0:00:41]} Rc4 {[%emt 0:01:26]} 40. Be5 {[%emt 0:00:00]} Qc8 {[%emt 0:00:00]} 41. Ree3 {[%emt 0:02:59]} Qc6 {[%emt 0:01:19]} 42. Bg3 {[%emt 0:01:01]} Ne8 {[%emt 0:01:32]} 43. Ne2 {[%emt 0:02:38]} Ng7 {[%emt 0:01:45]} 44. f4 {[%emt 0:01:19]} gxf4 {[%emt 0:01:38]} 45. Nxf4+ {[%emt 0:00:31]} Kh7 {[%emt 0:00:08]} 46. Re5 {[%emt 0:00:32]} Rc2+ {[%emt 0:05:13]} 47. Ne2 {[%emt 0:01:10]} Ne6 {[%emt 0:01:18]} 48. Rf5 {[%emt 0:19:00]} Qc4 {[%emt 0:02:34]} 49. Rh5+ {[%emt 0:00:06]} Kg7 {[%emt 0:01:40]} 50. Ke3 {[%emt 0:01:29]} f6 {[%emt 0:03:15]} 51. Rf5 {[%emt 0:00:51]} Rxe2+ {[%emt 0:01:06]} 0-1

[Event "FIDE WYCC Top Boards Girls 2023"]
[Site "Montesilvano"]
[Date "2023.11.23"]
[Round "10.8"]
[White "Shohradova, Lala"]
[Black "Allahverdiyeva, Ayan"]
[Result "0-1"]
[ECO "D32"]
[WhiteElo "1846"]
[BlackElo "2152"]
[Annotator "RC"]
[PlyCount "60"]
[EventDate "2023.11.13"]
[EventType "swiss"]
[EventCountry "ITA"]
[SourceTitle "playchess.com"]
[Source "ChessBase"]
[SourceQuality "1"]
[TimeControl "40/5400+30:1800+30"]

1. d4 {[%emt 0:00:15]} d5 {[%emt 0:01:12]} 2. c4 {[%emt 0:00:36]} e6 {[%emt 0:00:05]} 3. Nc3 {[%emt 0:00:47]} c5 {[%emt 0:00:11]} 4. Nf3 {[%emt 0:04:22]} cxd4 {[%emt 0:00:54]} 5. Nxd4 {[%emt 0:00:31]} e5 {[%emt 0:01:24]} 6. Nc2 {[%emt 0:03:03]} d4 {[%emt 0:04:50]} 7. Nd5 {[%emt 0:03:47]} Nf6 {[%emt 0:07:07]} 8. Bg5 {[%emt 0:07:30]} Bf5 {[%emt 0:05:52]} 9. Bxf6 {[%emt 0:11:40]} gxf6 {[%emt 0:00:21]} 10. e3 {[%emt 0:00:29]} Nc6 {[%emt 0:10:49]} 11. Be2 {[%emt 0:18:03]} Qa5+ {[%emt 0:09:39]} 12. Kf1 {[%emt 0:01:51]} O-O-O {[%emt 0:04:35]} 13. Bg4 {[%emt 0:12:07]} Bxg4 {[%emt 0:01:28]} 14. Qxg4+ {[%emt 0:00:02]} Kb8 {[%emt 0:00:52]} 15. e4 {[%emt 0:09:07]} f5 {[%emt 0:19:23]} 16. exf5 {[%emt 0:03:45]} Qa6 {[%emt 0:14:31]} 17. Qe2 {[%emt 0:06:38]} Rxd5 {[%emt 0:01:05]} 18. cxd5 {[%emt 0:00:32]} d3 {[%emt 0:00:03]} 19. Qe3 {[%emt 0:01:25]} dxc2+ {[%emt 0:02:18]} 20. Kg1 {[%emt 0:00:01]} Bc5 {[%emt 0:00:21]} 21. Qxc5 {[%emt 0:03:51]} Nd4 {[%emt 0:00:09]} 22. h3 {[%emt 0:00:20]} Rc8 {[%emt 0:11:05]} 23. Qe7 {[%emt 0:00:05]} Qe2 {[%emt 0:00:25]} 24. Qxf7 {[%emt 0:04:40]} c1=Q+ {[%emt 0:01:15]} 25. Rxc1 {[%emt 0:00:01]} Rxc1+ {[%emt 0:00:06]} 26. Kh2 {[%emt 0:00:05]} Rc8 {[%emt 0:00:53]} 27. Qxh7 {[%emt 0:05:24]} Qxf2 {[%emt 0:00:22]} 28. Ra1 {[%emt 0:01:46]} Qf4+ {[%emt 0:00:54]} 29. Kg1 {[%emt 0:00:30]} Ne2+ {[%emt 0:00:04]} 30. Kh1 {[%emt 0:00:07]} Rc1+ {[%emt 0:00:03]} 0-1